fUST/lending_fUST_20250901
["ID","MTS","AMOUNT","RATE_DAILY","PERIOD"]
[382632856,1756687864027,-480.0,0.0001689,2]
[382632857,1756687864037,-480.0,0.0001689,2]
[382632858,1756687864051,-1282.24,0.0001689,2]
[382632859,1756687864061,-597.33,0.0001689,2]
[382632860,1756687864071,-480.0,0.0001689,2]
[382632861,1756687864081,-1208.35,0.0001689,2]
[382632862,1756687864092,-480.0,0.0001689,2]
[382632863,1756687864101,-480.0,0.0001689,2]
[382632864,1756687864111,-480.0,0.0001689,2]
[382632865,1756687864121,-588.85,0.0001689,2]
[382632866,1756687864132,-537.46,0.0001689,2]
[382632867,1756687864142,-1127.08,0.0001689,2]
[382632868,1756687864151,-480.0,0.0001689,2]
[382632869,1756687864160,-480.0,0.0001689,2]
[382632870,1756687864171,-240.98376815,0.0001689,2]
[382632871,1756687864181,-1167.29,0.0001689,2]
[382632872,1756687864191,-480.0,0.0001689,2]
[382632873,1756687864200,-480.0,0.0001689,2]
[382632874,1756687864210,-480.0,0.0001689,2]
[382632875,1756687864221,-480.0,0.0001689,2]
[382632876,1756687864231,-1304.43,0.0001689,2]
[382632877,1756687864241,-480.0,0.0001689,2]
[382632878,1756687864250,-1072.46,0.0001689,2]
[382632879,1756687864262,-958.16,0.0001689,2]
[382632880,1756687864272,-1440.15,0.0001689,2]
[382632881,1756687864281,-480.0,0.0001689,2]
[382632882,1756687864292,-480.0,0.0001689,2]
[382632883,1756687864303,-795.37,0.0001689,2]
[382632884,1756687864313,-626.57,0.0001689,2]
[382632885,1756687864323,-508.59,0.0001689,2]
[382632886,1756687864332,-480.0,0.0001689,2]
[382632887,1756687864342,-480.0,0.0001689,2]
[382632888,1756687864352,-635.1,0.0001689,2]
[382632889,1756687864361,-480.0,0.0001689,2]
[382632890,1756687864371,-584.5,0.0001689,2]
[382632891,1756687864381,-480.0,0.0001689,2]
[382632892,1756687864391,-480.0,0.0001689,2]
[382632893,1756687864400,-480.0,0.0001689,2]
[382632894,1756687864410,-480.0,0.0001689,2]
[382632895,1756687864420,-2022.72,0.0001689,2]
[382632896,1756687864429,-480.0,0.0001689,2]
[382632897,1756687864439,-751.25,0.0001689,2]
[382632898,1756687864448,-1267.73,0.0001689,2]
[382632899,1756687864458,-480.0,0.0001689,2]
[382632900,1756687864467,-480.0,0.00016891,2]
[382632901,1756687864476,-480.0,0.00016891,2]
[382632902,1756687864487,-480.0,0.00016891,2]
[382632903,1756687864496,-480.0,0.00016891,2]
[382632904,1756687864505,-540.74,0.00016891,2]
[382632905,1756687864515,-482.18,0.00016891,2]
[382632906,1756687864524,-480.0,0.00016891,2]
[382632907,1756687864534,-480.0,0.00016891,2]
[382632908,1756687864544,-480.0,0.00016891,2]
[382632909,1756687864555,-480.0,0.00016891,2]
[382632910,1756687864564,-587.8,0.00016891,2]
[382632911,1756687864573,-506.86,0.00016891,2]
[382632912,1756687864583,-480.0,0.00016891,2]
[382632913,1756687864592,-1254.21,0.00016891,2]
[382632914,1756687864601,-480.0,0.00016891,2]
[382632915,1756687864611,-480.0,0.00016891,2]
[382632916,1756687864620,-480.0,0.00016891,2]
[382632917,1756687864629,-1234.42,0.00016891,2]
[382632918,1756687864638,-1177.56,0.00016891,2]
[382632919,1756687864647,-480.0,0.00016891,2]
[382632920,1756687864656,-480.0,0.00016891,2]
[382632921,1756687864665,-480.0,0.00016891,2]
[382632922,1756687864674,-547.85,0.00016891,2]
[382632923,1756687864683,-480.0,0.00016891,2]
[382632924,1756687864692,-480.0,0.00016891,2]
[382632925,1756687864701,-645.43,0.00016891,2]
[382632926,1756687864710,-496.59,0.00016891,2]
[382632927,1756687864720,-480.0,0.00016891,2]
[382632928,1756687864728,-480.0,0.00016891,2]
[382632929,1756687864737,-480.0,0.00016891,2]
[382632930,1756687864747,-480.0,0.00016891,2]
[382632931,1756687864756,-480.0,0.00016891,2]
[382632932,1756687864765,-480.0,0.00016891,2]
[382632933,1756687864775,-480.0,0.00016891,2]
[382632934,1756687864785,-480.0,0.00016891,2]
[382632935,1756687864794,-492.22,0.00016891,2]
[382632936,1756687864803,-720.11,0.00016891,2]
[382632937,1756687864812,-480.0,0.00016891,2]
[382632938,1756687864821,-480.0,0.00016891,2]
[382632939,1756687864831,-585.35,0.00016891,2]
[382632940,1756687864840,-434.75143549,0.00016891,2]
[382632941,1756687864849,-480.0,0.00016891,2]
[382632942,1756687864858,-480.0,0.00016891,2]
[382632943,1756687864867,-721.85,0.00016891,2]
[382632944,1756687864876,-480.0,0.00016891,2]
[382632945,1756687864885,-480.0,0.00016891,2]
[382632946,1756687864895,-480.0,0.00016891,2]
[382632947,1756687864904,-416.95114487,0.00016891,2]
[382632948,1756687864913,-480.0,0.00016891,2]
[382632949,1756687864923,-480.0,0.00016891,2]
[382632950,1756687864932,-480.0,0.00016891,2]
[382632951,1756687864941,-1431.94,0.00016891,2]
[382632952,1756687864951,-368.24939402,0.00016891,2]
[382632953,1756687864959,-480.0,0.00016891,2]
[382632954,1756687864969,-742.41,0.00016891,2]
[382632955,1756687864978,-779.49,0.00016891,2]
[382632956,1756687864988,-480.0,0.00016891,2]
[382632957,1756687864999,-480.0,0.00016891,2]
[382632958,1756687865010,-1355.72,0.00016891,2]
[382632959,1756687865019,-480.0,0.00016891,2]
[382632960,1756687865028,-480.0,0.00016891,2]
[382632961,1756687865038,-480.0,0.00016891,2]
[382632962,1756687865052,-480.0,0.00016891,2]
[382632963,1756687865062,-480.0,0.00016891,2]
[382632964,1756687865071,-853.8,0.00016891,2]
[382632965,1756687865080,-480.0,0.00016891,2]
[382632966,1756687865091,-952.67,0.00016891,2]
[382632967,1756687865100,-480.0,0.00016891,2]
[382632968,1756687865110,-480.0,0.00016891,2]
[382632969,1756687865121,-480.0,0.00016891,2]
[382632970,1756687865130,-500.0,0.00016891,2]
[382632971,1756687865140,-480.0,0.00016891,2]
[382632972,1756687865150,-480.0,0.00016891,2]
[382632973,1756687865160,-480.0,0.00016891,2]
[382632974,1756687865170,-665.21,0.00016891,2]
[382632975,1756687865179,-480.0,0.00016891,2]
[382632976,1756687865189,-919.52,0.00016891,2]
[382632977,1756687865198,-480.0,0.00016891,2]
[382632978,1756687865207,-480.0,0.00016891,2]
[382632979,1756687865218,-480.0,0.00016891,2]
[382632980,1756687865227,-480.0,0.00016891,2]
[382632981,1756687865237,-480.0,0.00016891,2]
[382632982,1756687865247,-480.0,0.00016891,2]
[382632983,1756687865256,-602.84,0.00016891,2]
[382632984,1756687865266,-1348.81,0.00016891,2]
[382632985,1756687865276,-480.0,0.00016891,2]
[382632986,1756687865285,-480.0,0.00016891,2]
[382632987,1756687865294,-745.56,0.00016891,2]
[382632988,1756687865303,-480.0,0.00016891,2]
[382632989,1756687865312,-480.0,0.00016891,2]
[382632990,1756687865322,-636.73,0.00016891,2]
[382632991,1756687865331,-1065.89,0.00016891,2]
[382632992,1756687865340,-1007.05,0.00016891,2]
[382632993,1756687865349,-480.0,0.00016891,2]
[382632994,1756687865358,-498.04,0.00016891,2]
[382632995,1756687865367,-480.0,0.00016891,2]
[382632996,1756687865376,-480.0,0.00016891,2]
[382632997,1756687865385,-1078.85,0.00016891,2]
[382632998,1756687865395,-480.0,0.00016891,2]
[382632999,1756687865404,-836.93,0.00016891,2]
[382633000,1756687865413,-480.0,0.00016891,2]
[382633001,1756687865422,-480.0,0.00016891,2]
[382633002,1756687865431,-757.88,0.00016891,2]
[382633003,1756687865440,-480.0,0.00016891,2]
[382633004,1756687865449,-480.0,0.00016891,2]
[382633005,1756687865459,-480.0,0.00016891,2]
[382633006,1756687865468,-480.0,0.00016891,2]
[382633007,1756687865477,-480.0,0.00016891,2]
[382633008,1756687865486,-621.59548838,0.00016891,2]
[382633009,1756687865495,-480.0,0.00016891,2]
[382633010,1756687865504,-1027.14,0.00016891,2]
[382633011,1756687865513,-692.73,0.00016891,2]
[382633012,1756687865523,-480.0,0.00016891,2]
[382633013,1756687865532,-480.0,0.00016891,2]
[382633014,1756687865541,-640.96,0.00016891,2]
[382633015,1756687865550,-480.0,0.00016891,2]
[382633016,1756687865559,-480.0,0.00016891,2]
[382633017,1756687865568,-480.0,0.00016891,2]
[382633018,1756687865578,-657.74,0.00016891,2]
[382633019,1756687865587,-480.0,0.00016891,2]
[382633020,1756687865596,-995.1,0.00016891,2]
[382633021,1756687865606,-1702.2,0.00016892,2]
[382633022,1756687865615,-696.63,0.00016892,2]
[382633023,1756687865624,-480.0,0.00016892,2]
[382633024,1756687865633,-572.22,0.00016892,2]
[382633025,1756687865643,-918.17,0.00016892,2]
[382633026,1756687865653,-903.61,0.00016892,2]
[382633027,1756687865662,-480.0,0.00016892,2]
[382633028,1756687865672,-1164.13,0.00016892,2]
[382633029,1756687865681,-501.48,0.00016892,2]
[382633030,1756687865691,-480.0,0.00016892,2]
[382633031,1756687865701,-480.0,0.00016892,2]
[382633032,1756687865710,-480.0,0.00016892,2]
[382633033,1756687865719,-480.0,0.00016892,2]
[382633034,1756687865729,-570.88,0.00016892,2]
[382633035,1756687865738,-239.98789527,0.00016893,2]
[382633036,1756687865748,-480.0,0.00016893,2]
[382633037,1756687865757,-539.37,0.00016893,2]
[382633038,1756687865768,-480.0,0.00016893,2]
[382633039,1756687865777,-480.0,0.00016893,2]
[382633040,1756687865787,-1296.92,0.00016893,2]
[382633041,1756687865796,-761.86,0.00016893,2]
[382633042,1756687865805,-480.0,0.00016893,2]
[382633043,1756687865815,-354.96544591,0.00016893,2]
[382633044,1756687865824,-575.60032032,0.00016893,2]
[382633045,1756687865834,-480.0,0.00016893,2]
[382633046,1756687865843,-632.19,0.00016893,2]
[382633047,1756687865853,-520.00015841,0.00016893,2]
[382633048,1756687865862,-480.0,0.00016893,2]
[382633049,1756687865871,-480.0,0.00016893,2]
[382633050,1756687865881,-686.37,0.00016893,2]
[382633051,1756687865890,-578.59,0.00016893,2]
[382633052,1756687865899,-480.0,0.00016893,2]
[382633053,1756687865909,-574.82,0.00016893,2]
[382633054,1756687865918,-627.33060653,0.00016893,2]
[382633055,1756687865928,-282.26544843,0.00016894,2]
[382633056,1756687865937,-500.0,0.00016894,2]
[382633057,1756687865947,-500.0,0.00016894,2]
[382633058,1756687865956,-151.0,0.00016894,2]
[382633059,1756687865965,-500.0,0.00016894,2]
[382633060,1756687865975,-660.0,0.00016895,2]
[382633061,1756687865985,-491.28981726,0.00016901,2]
[382633062,1756687865995,-166.28300412,0.00016901,2]
[382633063,1756687866004,-151.0,0.00016901,2]
[382633064,1756687866015,-151.0,0.00016901,2]
[382633065,1756687866025,-408.9402474,0.00016921,2]
[382633066,1756687866035,-1000.0,0.00016921,2]
[382633067,1756687866046,-261.70406853,0.00016921,2]
[382633068,1756687866058,-1000.0,0.00016921,2]
[382633069,1756687866067,-1000.0,0.00016921,2]
[382633070,1756687866078,-1000.0,0.00016921,2]
[382633071,1756687866087,-713.79428328,0.00016921,2]
[382633072,1756687866097,-752.29239426,0.00016921,2]
[382633073,1756687866107,-1000.0,0.00016921,2]
[382633074,1756687866117,-1000.0,0.00016921,2]
[382633075,1756687866128,-1062.30944089,0.00016921,2]
[382633076,1756687866138,-1000.0,0.00016921,2]
[382633077,1756687866153,-1000.0,0.00016921,2]
[382633078,1756687866163,-500.0,0.00016921,2]
[382633079,1756687866172,-500.0,0.00016921,2]
[382633080,1756687866182,-1000.0,0.00016921,2]
[382633081,1756687866191,-524.36340573,0.00016921,2]
[382633082,1756687866200,-1000.0,0.00016921,2]
[382633083,1756687866209,-1000.0,0.00016921,2]
[382633084,1756687866219,-1000.0,0.00016921,2]
[382633085,1756687866228,-1000.0,0.00016921,2]
[382633086,1756687866239,-1000.0,0.00016921,2]
[382633087,1756687866249,-500.75883026,0.00016921,2]
[382633088,1756687866259,-1000.0,0.00016921,2]
[382633089,1756687866386,-1000.0,0.00016921,2]
[382633090,1756687866408,-1000.0,0.00016921,2]
[382633091,1756687866418,-751.57008637,0.00016921,2]
[382633092,1756687866427,-1000.0,0.00017,2]
[382633093,1756687866437,-8891.61465851,0.00017,2]
[382633094,1756687866447,-259.22740364,0.00017,2]
[382633095,1756687866457,-2988.10233505,0.00017,2]
[382633096,1756687866468,-484.59316334,0.00017008,2]
[382633097,1756687866477,-660.0,0.00017029,2]
[382633098,1756687866486,-160.0,0.00017042,2]
[382633099,1756687866496,-5000.0,0.0001709,2]
[382633100,1756687866505,-637.89556672,0.00017091,2]
[382633101,1756687866516,-3771.0,0.00017149,2]
[382633102,1756687866526,-8233.35476293,0.00017153,2]
[382633103,1756687866536,-480.0,0.00017155,2]
[382633104,1756687866545,-480.0,0.00017155,2]
[382633105,1756687866555,-1122.55,0.00017155,2]
[382633106,1756687866564,-519.65,0.00017155,2]
[382633107,1756687866574,-480.0,0.00017155,2]
[382633108,1756687866583,-480.0,0.00017157,2]
[382633109,1756687866592,-963.66,0.00017157,2]
[382633110,1756687866601,-480.0,0.00017157,2]
[382633111,1756687866611,-1331.97,0.00017157,2]
[382633112,1756687866621,-480.0,0.00017157,2]
[382633113,1756687866629,-568.19,0.00017157,2]
[382633114,1756687866639,-480.0,0.00017157,2]
[382633115,1756687866648,-611.39036016,0.00017157,2]
[382633116,1756687866658,-565.58,0.00017157,2]
[382633117,1756687866668,-510.97,0.00017157,2]
[382633118,1756687866677,-480.0,0.00017157,2]
[382633119,1756687866688,-613.56,0.00017157,2]
[382633120,1756687866698,-887.25,0.00017157,2]
[382633121,1756687866708,-480.0,0.00017157,2]
[382633122,1756687866718,-480.0,0.00017157,2]
[382633123,1756687866728,-480.0,0.00017157,2]
[382633124,1756687866737,-480.0,0.00017157,2]
[382633125,1756687866748,-662.13,0.00017157,2]
[382633126,1756687866759,-648.74,0.00017157,2]
[382633127,1756687866769,-2943.35,0.00017157,2]
[382633128,1756687866779,-636.74,0.00017157,2]
[382633129,1756687866788,-711.48,0.00017157,2]
[382633130,1756687866797,-480.0,0.00017157,2]
[382633131,1756687866807,-480.0,0.00017157,2]
[382633132,1756687866816,-577.83,0.00017157,2]
[382633133,1756687866825,-692.85,0.00017157,2]
[382633134,1756687866835,-480.0,0.00017157,2]
[382633135,1756687866844,-480.0,0.00017157,2]
[382633136,1756687866853,-1328.76,0.00017157,2]
[382633137,1756687866862,-1582.58,0.00017157,2]
[382633138,1756687866871,-2071.03,0.00017157,2]
[382633139,1756687866880,-480.0,0.00017157,2]
[382633140,1756687866890,-480.0,0.00017157,2]
[382633141,1756687866901,-513.5,0.00017157,2]
[382633142,1756687866910,-500.0,0.00017158,2]
[382633143,1756687866919,-480.0,0.0001716,2]
[382633144,1756687866929,-589.03,0.0001716,2]
[382633145,1756687866939,-1498.81,0.0001716,2]
[382633146,1756687866949,-882.21,0.0001716,2]
[382633147,1756687866959,-1054.79,0.0001716,2]
[382633148,1756687866970,-1158.3,0.0001716,2]
[382633149,1756687866980,-799.8,0.0001716,2]
[382633150,1756687866989,-522.67,0.0001716,2]
[382633151,1756687866999,-536.1,0.0001716,2]
[382633152,1756687867009,-499.36,0.0001716,2]
[382633153,1756687867020,-748.57,0.0001716,2]
[382633154,1756687867031,-587.17,0.0001716,2]
[382633155,1756687867040,-480.0,0.0001716,2]
[382633156,1756687867056,-480.0,0.0001716,2]
[382633157,1756687867065,-784.21,0.0001716,2]
[382633158,1756687867075,-773.02,0.0001716,2]
[382633159,1756687867086,-480.0,0.0001716,2]
[382633160,1756687867097,-682.77,0.0001716,2]
[382633161,1756687867106,-480.0,0.0001716,2]
[382633162,1756687867116,-522.52,0.0001716,2]
[382633163,1756687867127,-480.0,0.0001716,2]
[382633164,1756687867137,-480.0,0.0001716,2]
[382633165,1756687867147,-1024.39,0.0001716,2]
[382633166,1756687867156,-480.0,0.0001716,2]
[382633167,1756687867165,-1232.82,0.0001716,2]
[382633168,1756687867175,-809.87,0.0001716,2]
[382633169,1756687867184,-945.39,0.0001716,2]
[382633170,1756687867194,-658.83,0.0001716,2]
[382633171,1756687867205,-1016.87,0.0001716,2]
[382633172,1756687867214,-480.0,0.0001716,2]
[382633173,1756687867224,-1324.18,0.0001716,2]
[382633174,1756687867233,-210.46874851,0.0001716,2]
[382633175,1756687867243,-480.0,0.0001716,2]
[382633176,1756687867253,-480.0,0.0001716,2]
[382633177,1756687867265,-480.0,0.0001716,2]
[382633178,1756687867278,-740.28,0.0001716,2]
[382633179,1756687867287,-639.03,0.0001716,2]
[382633180,1756687867297,-480.0,0.0001716,2]
[382633181,1756687867306,-480.0,0.0001716,2]
[382633182,1756687867315,-480.0,0.0001716,2]
[382633183,1756687867325,-480.0,0.0001716,2]
[382633184,1756687867335,-480.0,0.0001716,2]
[382633185,1756687867343,-857.01,0.0001716,2]
[382633186,1756687867353,-1115.88,0.0001716,2]
[382633187,1756687867363,-480.0,0.0001716,2]
[382633188,1756687867373,-891.1,0.0001716,2]
[382633189,1756687867383,-860.37,0.0001716,2]
[382633190,1756687867392,-480.0,0.0001716,2]
[382633191,1756687867402,-633.85,0.0001716,2]
[382633192,1756687867412,-480.0,0.0001716,2]
[382633193,1756687867421,-480.0,0.0001716,2]
[382633194,1756687867431,-990.54,0.0001716,2]
[382633195,1756687867440,-480.0,0.0001716,2]
[382633196,1756687867450,-210.59940042,0.0001716,2]
[382633197,1756687867459,-485.5,0.0001716,2]
[382633198,1756687867468,-480.0,0.0001716,2]
[382633199,1756687867479,-794.96,0.0001716,2]
[382633200,1756687867489,-281.81,0.0001716,2]
[382633201,1756687867498,-507.12,0.0001716,2]
[382633202,1756687867508,-1031.24,0.0001716,2]
[382633203,1756687867519,-1228.91,0.00017162,2]
[382633204,1756687867529,-736.97,0.00017162,2]
[382633205,1756687867539,-4337.97,0.00017162,2]
[382633206,1756687867549,-6736.17,0.00017162,2]
[382633207,1756687867558,-1809.52,0.00017162,2]
[382633208,1756687867567,-480.0,0.00017162,2]
[382633209,1756687867577,-1035.03,0.00017162,2]
[382633210,1756687867586,-1485.05,0.00017162,2]
[382633211,1756687867594,-5153.42,0.00017162,2]
[382633212,1756687867603,-2494.64,0.00017162,2]
[382633213,1756687867612,-5045.87208937,0.00017162,2]
[382633214,1756687868451,159.0,0.00016,2]
[382633215,1756687868478,-265.00000006,0.00016061,2]
[382633216,1756687869583,-214.99999994,0.00016061,2]
[382633217,1756687869594,-27.25775208,0.00016064,2]
[382633218,1756687869610,-961.30224792,0.00016064,2]
[382633219,1756687869621,-256.91701197,0.00016066,2]
[382633220,1756687869801,146.90812221,0.00016,2]
[382633221,1756687869826,12.09187779,0.00016,2]
[382633222,1756687871665,159.0,0.00016,2]
[382633223,1756687909622,159.0,0.00016,3]
[382633224,1756687910588,159.0,0.00016,3]
[382633225,1756687911458,159.0,0.00016,3]
[382633226,1756687924660,156.19460115,0.00016,2]
[382633229,1756687960387,1580.2808168,0.00015958,2]
[382633230,1756688036396,1000.0,0.00015967,2]
[382633234,1756688134711,1068.322352,0.00013699,2]
[382633235,1756688156192,1382.7457147,0.00015956,2]
[382633237,1756688312761,268.576009,0.00015573,2]
[382633238,1756688313100,151.60588426,0.00015574,2]
[382633239,1756688346972,1209.90250038,0.00015954,2]
[382633240,1756688356209,432.477396,0.00015056,2]
[382633242,1756688410533,720.12282733,0.00015961,2]
[382633243,1756688539031,1058.66468785,0.00015953,2]
[382633244,1756688556306,323.02533274,0.00015968,2]
[382633245,1756688556329,676.97466726,0.00015968,2]
[382633247,1756688732820,926.33160186,0.00015951,2]
[382633249,1756688751255,576.09826188,0.00015957,2]
[382633250,1756688803471,2000.0,0.00016,2]
[382633252,1756688879692,604.0,0.00016,2]
[382633253,1756688879963,399.43,0.00015185,2]
[382633254,1756688880452,399.43,0.00015185,2]
[382633255,1756688880737,180.0,0.00016,2]
[382633256,1756688881092,180.0,0.00016,2]
[382633257,1756688881429,178.86528761,0.00016,2]
[382633258,1756688881453,1.13471239,0.00016,2]
[382633259,1756688881726,180.0,0.00016,2]
[382633260,1756688882038,180.0,0.00016,2]
[382633261,1756688882320,180.0,0.00016,2]
[382633262,1756688882599,179.99,0.00016,2]
[382633263,1756688925869,810.54015161,0.00015949,2]
[382633264,1756688972229,-163.414,0.00016048,2]
[382633265,1756688972263,-300.0,0.00016048,2]
[382633266,1756688972862,-2100.33040406,0.00016049,2]
[382633267,1756688973074,-10000.01,0.00016049,2]
[382633268,1756688973121,-10000.01,0.00016049,2]
[382633269,1756688973139,-10000.01,0.00016049,2]
[382633270,1756688973161,-10000.01,0.00016049,2]
[382633271,1756688973205,-21.36719043,0.00016049,2]
[382633272,1756688973241,-395.50459526,0.00016049,2]
[382633273,1756688973276,-584.26691197,0.00016049,2]
[382633274,1756688973313,-500.0,0.00016049,2]
[382633275,1756688973350,-500.0,0.00016049,2]
[382633276,1756688973384,-186.46136602,0.00016049,2]
[382633277,1756688973421,-500.0,0.00016049,2]
[382633278,1756688973463,-500.0,0.00016049,2]
[382633279,1756688973501,-500.0,0.00016049,2]
[382633280,1756688973538,-500.0,0.00016049,2]
[382633281,1756688973569,-500.0,0.00016049,2]
[382633282,1756688973603,-124.80987264,0.00016049,2]
[382633283,1756688974008,-375.19012736,0.00016049,2]
[382633284,1756688974037,-500.0,0.00016049,2]
[382633285,1756688974073,-500.0,0.00016049,2]
[382633286,1756688974103,-500.0,0.00016049,2]
[382633287,1756688974133,-500.0,0.00016049,2]
[382633288,1756688974163,-500.0,0.00016049,2]
[382633289,1756688974192,-500.0,0.00016049,2]
[382633290,1756688974224,-500.0,0.00016049,2]
[382633291,1756688974255,-500.0,0.00016049,2]
[382633292,1756688974284,-500.0,0.00016049,2]
[382633293,1756688974397,-500.0,0.00016049,2]
[382633294,1756688974427,-500.0,0.00016049,2]
[382633295,1756688974460,-500.0,0.00016049,2]
[382633296,1756688974489,-500.0,0.00016049,2]
[382633297,1756688974521,-500.0,0.00016049,2]
[382633298,1756688974551,-500.0,0.00016049,2]
[382633299,1756688974580,-500.0,0.00016049,2]
[382633300,1756688974609,-500.0,0.00016049,2]
[382633301,1756688974639,-500.0,0.00016049,2]
[382633302,1756688974668,-500.0,0.00016049,2]
[382633303,1756688975125,-124.81987264,0.00016049,2]
[382633304,1756688975144,-375.18012736,0.00016049,2]
[382633305,1756688975153,-124.81987264,0.00016049,2]
[382633306,1756688975166,-0.01,0.00016049,2]
[382633307,1756688982612,-375.17012736,0.00016049,2]
[382633308,1756688982643,-500.0,0.00016049,2]
[382633309,1756688982672,-500.0,0.00016049,2]
[382633310,1756688982701,-554.11436791,0.00016049,2]
[382633311,1756688982732,-500.0,0.00016049,2]
[382633312,1756688982760,-500.0,0.00016049,2]
[382633313,1756688982788,-500.0,0.00016049,2]
[382633314,1756688982816,-500.0,0.00016049,2]
[382633315,1756688982844,-500.0,0.00016049,2]
[382633316,1756688982872,-500.0,0.00016049,2]
[382633317,1756688982910,-500.0,0.00016049,2]
[382633318,1756688982937,-500.0,0.00016049,2]
[382633319,1756688982965,-500.0,0.00016049,2]
[382633320,1756688982995,-500.0,0.00016049,2]
[382633321,1756688983021,-500.0,0.00016049,2]
[382633322,1756688983049,-601.34596656,0.00016049,2]
[382633323,1756688983075,-500.0,0.00016049,2]
[382633324,1756688983102,-500.0,0.00016049,2]
[382633325,1756688983131,-500.0,0.00016049,2]
[382633326,1756688983159,-297.31806688,0.00016049,2]
[382633327,1756688983189,-202.68193312,0.00016049,2]
[382633328,1756688983217,-500.0,0.00016049,2]
[382633329,1756688983251,-500.0,0.00016049,2]
[382633330,1756688983281,-500.0,0.00016049,2]
[382633331,1756688983314,-500.0,0.00016049,2]
[382633332,1756688983343,-500.0,0.00016049,2]
[382633333,1756688983371,-646.13647082,0.00016049,2]
[382633334,1756688983399,-500.0,0.00016049,2]
[382633335,1756688983430,-500.0,0.00016049,2]
[382633336,1756688983461,-500.0,0.00016049,2]
[382633337,1756688983535,-500.0,0.00016049,2]
[382633338,1756688983567,-500.0,0.00016049,2]
[382633339,1756688983597,-500.0,0.00016049,2]
[382633340,1756688983628,-500.0,0.00016049,2]
[382633341,1756688983659,-500.0,0.00016049,2]
[382633342,1756688983689,-500.0,0.00016049,2]
[382633343,1756688983718,-500.0,0.00016049,2]
[382633344,1756688983750,-500.0,0.00016049,2]
[382633345,1756688983781,-500.0,0.00016049,2]
[382633346,1756688983811,-500.0,0.00016049,2]
[382633347,1756688983890,-500.0,0.00016049,2]
[382633348,1756688983922,-500.0,0.00016049,2]
[382633349,1756688983953,-500.0,0.00016049,2]
[382633350,1756688983987,-500.0,0.00016049,2]
[382633351,1756688984017,-500.0,0.00016049,2]
[382633352,1756688984046,-500.0,0.00016049,2]
[382633353,1756688984075,-500.0,0.00016049,2]
[382633354,1756688984104,-500.0,0.00016049,2]
[382633355,1756688984134,-500.0,0.00016049,2]
[382633356,1756688984164,-500.0,0.00016049,2]
[382633357,1756688984284,-500.0,0.00016049,2]
[382633358,1756688984314,-500.0,0.00016049,2]
[382633359,1756688984344,-500.0,0.00016049,2]
[382633360,1756688984374,-500.0,0.00016049,2]
[382633361,1756688984406,-500.0,0.00016049,2]
[382633362,1756688984436,-500.0,0.00016049,2]
[382633363,1756688984471,-500.0,0.00016049,2]
[382633364,1756688984503,-500.0,0.00016049,2]
[382633365,1756688984535,-500.0,0.00016049,2]